[Event "Titled Tuesday Blitz May 31 Early 2022"]
[White "Gong, Patrick"]
[Black "Chigaev, Maksim"]
[WhiteFideId "3222500"]
[BlackFideId "4108116"]
[WhiteElo "2103"]
[BlackElo "2457"]
[Result "1-0"]
[Round "11"]
[TimeControl "180+1"]
[Date "2022.05.31"]
[WhiteClock "0:00:46"]
[BlackClock "0:00:05"]

1. e4 {[%clk 0:03:00]}  c6 {[%clk 0:02:53]} 2. d4 {[%clk 0:02:57]}  d5 {[%clk 0:02:52]} 3. exd5 {[%clk 0:02:56]}  cxd5 {[%clk 0:02:53]} 4. Bd3 {[%clk 0:02:55]}  Nc6 {[%clk 0:02:49]} 5. c3 {[%clk 0:02:53]}  Nf6 {[%clk 0:02:47]} 6. Bf4 {[%clk 0:02:44]}  Bg4 {[%clk 0:02:42]} 7. Qb3 {[%clk 0:02:39]}  Qc8 {[%clk 0:02:41]} 8. Nd2 {[%clk 0:02:36]}  e6 {[%clk 0:02:33]} 9. Ngf3 {[%clk 0:02:35]}  Bxf3 {[%clk 0:02:30]} 10. Nxf3 {[%clk 0:02:35]}  Be7 {[%clk 0:02:31]} 11. O-O {[%clk 0:02:34]}  O-O {[%clk 0:02:32]} 12. Ne5 {[%clk 0:02:32]}  a6 {[%clk 0:02:28]} 13. Rae1 {[%clk 0:02:32]}  Nxe5 {[%clk 0:02:26]} 14. Bxe5 {[%clk 0:02:32]}  Qd7 {[%clk 0:02:26]} 15. Qc2 {[%clk 0:02:29]}  g6 {[%clk 0:02:23]} 16. Qe2 {[%clk 0:02:19]}  Rfc8 {[%clk 0:02:19]} 17. Qf3 {[%clk 0:02:16]}  Qd8 {[%clk 0:02:18]} 18. h4 {[%clk 0:02:12]}  h5 {[%clk 0:02:16]} 19. Qf4 {[%clk 0:02:03]}  Nd7 {[%clk 0:02:08]} 20. Bxg6 {[%clk 0:01:48]}  fxg6 {[%clk 0:01:57]} 21. Qh6 {[%clk 0:01:46]}  Nxe5 {[%clk 0:00:48]} 22. Rxe5 {[%clk 0:01:44]}  Kf7 {[%clk 0:00:27]} 23. Qh7+ {[%clk 0:01:38]}  Kf6 {[%clk 0:00:27]} 24. Rfe1 {[%clk 0:01:36]}  Qg8 {[%clk 0:00:27]} 25. Rxe6+ {[%clk 0:01:23]}  Qxe6 {[%clk 0:00:28]} 26. Rxe6+ {[%clk 0:01:24]}  Kxe6 {[%clk 0:00:29]} 27. Qxg6+ {[%clk 0:01:24]}  Bf6 {[%clk 0:00:30]} 28. Qxh5 {[%clk 0:01:23]}  Rg8 {[%clk 0:00:30]} 29. g4 {[%clk 0:01:19]}  Raf8 {[%clk 0:00:28]} 30. g5 {[%clk 0:01:13]}  Be7 {[%clk 0:00:12]} 31. Qg4+ {[%clk 0:01:08]}  Kd6 {[%clk 0:00:12]} 32. f4 {[%clk 0:01:08]}  Kc6 {[%clk 0:00:13]} 33. f5 {[%clk 0:00:59]}  Rg7 {[%clk 0:00:08]} 34. g6 {[%clk 0:00:56]}  Bf6 {[%clk 0:00:08]} 35. h5 {[%clk 0:00:54]}  Rh8 {[%clk 0:00:08]} 36. c4 {[%clk 0:00:54]}  dxc4 {[%clk 0:00:05]} 37. Qe4+ {[%clk 0:00:53]}  Kc7 {[%clk 0:00:06]} 38. h6 {[%clk 0:00:46]}  Rxh6 {[%clk 0:00:05]} 39. Qf4+ {[%clk 0:00:46]} 1-0


[Site "https://www.chess.com"]

[Event "Titled Tuesday Blitz May 31 Early 2022"]
[White "Gunina, Valentina"]
[Black "Lazavik, Denis"]
[WhiteFideId "4167570"]
[BlackFideId "13515110"]
[WhiteElo "2381"]
[BlackElo "2437"]
[Result "1-0"]
[Round "11"]
[TimeControl "180+1"]
[Date "2022.05.31"]
[WhiteClock "0:00:09"]
[BlackClock "0:00:05"]

1. d4 {[%clk 0:02:57]}  f5 {[%clk 0:03:00]} 2. c4 {[%clk 0:02:56]}  Nf6 {[%clk 0:03:00]} 3. Nf3 {[%clk 0:02:56]}  g6 {[%clk 0:02:59]} 4. g3 {[%clk 0:02:53]}  Bg7 {[%clk 0:03:00]} 5. Bg2 {[%clk 0:02:53]}  O-O {[%clk 0:03:00]} 6. O-O {[%clk 0:02:53]}  d6 {[%clk 0:03:01]} 7. Nc3 {[%clk 0:02:53]}  c6 {[%clk 0:03:02]} 8. d5 {[%clk 0:02:52]}  e5 {[%clk 0:03:02]} 9. dxe6 {[%clk 0:02:52]}  Bxe6 {[%clk 0:03:02]} 10. Qd3 {[%clk 0:02:51]}  Re8 {[%clk 0:03:02]} 11. b3 {[%clk 0:02:48]}  Na6 {[%clk 0:02:57]} 12. Bb2 {[%clk 0:02:48]}  Nc5 {[%clk 0:02:57]} 13. Qc2 {[%clk 0:02:49]}  a5 {[%clk 0:02:55]} 14. Rad1 {[%clk 0:02:49]}  Qe7 {[%clk 0:02:55]} 15. Ng5 {[%clk 0:02:48]}  Bc8 {[%clk 0:02:51]} 16. Qd2 {[%clk 0:02:47]}  h6 {[%clk 0:02:49]} 17. Nf3 {[%clk 0:02:47]}  Be6 {[%clk 0:02:25]} 18. e3 {[%clk 0:02:39]}  Rad8 {[%clk 0:02:24]} 19. Nd4 {[%clk 0:02:37]}  Bf7 {[%clk 0:02:24]} 20. Nce2 {[%clk 0:02:38]}  a4 {[%clk 0:02:23]} 21. Nf4 {[%clk 0:02:34]}  Ng4 {[%clk 0:02:19]} 22. h4 {[%clk 0:02:28]}  h5 {[%clk 0:02:09]} 23. Qc2 {[%clk 0:02:24]}  axb3 {[%clk 0:02:03]} 24. axb3 {[%clk 0:02:24]}  Ne5 {[%clk 0:02:04]} 25. Nh3 {[%clk 0:02:23]}  Ra8 {[%clk 0:01:46]} 26. Ng5 {[%clk 0:02:23]}  Ng4 {[%clk 0:01:43]} 27. Nxf7 {[%clk 0:02:08]}  Qxf7 {[%clk 0:01:42]} 28. Qb1 {[%clk 0:02:01]}  Ne4 {[%clk 0:01:24]} 29. f3 {[%clk 0:01:48]}  Nxg3 {[%clk 0:01:09]} 30. fxg4 {[%clk 0:01:49]}  hxg4 {[%clk 0:00:55]} 31. h5 {[%clk 0:01:28]}  Nxh5 {[%clk 0:00:43]} 32. Nxf5 {[%clk 0:01:27]}  gxf5 {[%clk 0:00:30]} 33. Rxf5 {[%clk 0:01:27]}  Qg6 {[%clk 0:00:27]} 34. Rxd6 {[%clk 0:00:46]}  Qxd6 {[%clk 0:00:22]} 35. Rxh5 {[%clk 0:00:47]}  Re7 {[%clk 0:00:06]} 36. Qh7+ {[%clk 0:00:45]}  Kf8 {[%clk 0:00:06]} 37. Bxg7+ {[%clk 0:00:42]}  Ke8 {[%clk 0:00:05]} 38. Qh8+ {[%clk 0:00:13]}  Kd7 {[%clk 0:00:06]} 39. Qxa8 {[%clk 0:00:09]}  Qb4 {[%clk 0:00:06]} 40. Bf6 {[%clk 0:00:08]}  Qe1+ {[%clk 0:00:05]} 41. Kh2 {[%clk 0:00:08]}  g3+ {[%clk 0:00:05]} 42. Kh3 {[%clk 0:00:08]}  Qb4 {[%clk 0:00:04]} 43. Bxe7 {[%clk 0:00:08]}  Qxe7 {[%clk 0:00:05]} 44. Qxb7+ {[%clk 0:00:08]}  Kd6 {[%clk 0:00:05]} 45. c5+ {[%clk 0:00:08]}  Ke6 {[%clk 0:00:05]} 46. Qxc6+ {[%clk 0:00:08]}  Kf7 {[%clk 0:00:05]} 47. Rh7+ {[%clk 0:00:09]} 1-0


[Site "https://www.chess.com"]

[Event "Titled Tuesday Blitz May 31 Early 2022"]
[White "Gurevich, Dmitry"]
[Black "Khamdamova, Afruza"]
[WhiteFideId "2000407"]
[BlackFideId "14210444"]
[WhiteElo "2506"]
[BlackElo "1660"]
[Result "0-1"]
[Round "11"]
[TimeControl "180+1"]
[Date "2022.06.01"]
[WhiteClock "0:00:01"]
[BlackClock "0:00:03"]

1. d4 {[%clk 0:03:00]}  Nf6 {[%clk 0:02:59]} 2. c4 {[%clk 0:02:57]}  g6 {[%clk 0:02:57]} 3. Nc3 {[%clk 0:02:57]}  d5 {[%clk 0:02:57]} 4. Nf3 {[%clk 0:02:55]}  Bg7 {[%clk 0:02:56]} 5. cxd5 {[%clk 0:02:53]}  Nxd5 {[%clk 0:02:56]} 6. Bd2 {[%clk 0:02:51]}  O-O {[%clk 0:02:52]} 7. Rc1 {[%clk 0:02:51]}  Nxc3 {[%clk 0:02:41]} 8. Bxc3 {[%clk 0:02:50]}  b6 {[%clk 0:02:23]} 9. e3 {[%clk 0:02:47]}  Bb7 {[%clk 0:02:20]} 10. Bc4 {[%clk 0:02:42]}  Nd7 {[%clk 0:02:16]} 11. O-O {[%clk 0:02:41]}  c5 {[%clk 0:02:14]} 12. a3 {[%clk 0:02:22]}  Rc8 {[%clk 0:02:09]} 13. dxc5 {[%clk 0:02:20]}  Nxc5 {[%clk 0:02:09]} 14. Bxg7 {[%clk 0:02:16]}  Kxg7 {[%clk 0:02:09]} 15. Qd4+ {[%clk 0:02:15]}  Qxd4 {[%clk 0:02:07]} 16. Nxd4 {[%clk 0:02:14]}  Ne4 {[%clk 0:02:00]} 17. Bd3 {[%clk 0:02:09]}  a6 {[%clk 0:01:56]} 18. f3 {[%clk 0:02:03]}  Nc5 {[%clk 0:01:54]} 19. Bc2 {[%clk 0:01:58]}  e5 {[%clk 0:01:47]} 20. Ne2 {[%clk 0:01:53]}  Rfd8 {[%clk 0:01:36]} 21. Rfd1 {[%clk 0:01:50]}  e4 {[%clk 0:01:28]} 22. f4 {[%clk 0:01:46]}  Ne6 {[%clk 0:01:20]} 23. Rxd8 {[%clk 0:01:37]}  Rxd8 {[%clk 0:01:20]} 24. Rd1 {[%clk 0:01:36]}  Rc8 {[%clk 0:01:19]} 25. Bb3 {[%clk 0:01:33]}  Nc5 {[%clk 0:01:19]} 26. Bc2 {[%clk 0:01:31]}  a5 {[%clk 0:01:01]} 27. Nc3 {[%clk 0:01:25]}  Rc7 {[%clk 0:00:39]} 28. Rd6 {[%clk 0:01:22]}  Bc6 {[%clk 0:00:27]} 29. Kf2 {[%clk 0:01:09]}  f5 {[%clk 0:00:26]} 30. Ke1 {[%clk 0:01:07]}  b5 {[%clk 0:00:21]} 31. Kd2 {[%clk 0:00:58]}  b4 {[%clk 0:00:20]} 32. axb4 {[%clk 0:00:57]}  axb4 {[%clk 0:00:20]} 33. Nd5 {[%clk 0:00:55]}  Bxd5 {[%clk 0:00:20]} 34. Rxd5 {[%clk 0:00:55]}  Kf6 {[%clk 0:00:19]} 35. Rd6+ {[%clk 0:00:54]}  Ke7 {[%clk 0:00:19]} 36. Rb6 {[%clk 0:00:54]}  Rd7+ {[%clk 0:00:19]} 37. Ke2 {[%clk 0:00:48]}  Nd3 {[%clk 0:00:08]} 38. Bxd3 {[%clk 0:00:45]}  Rxd3 {[%clk 0:00:08]} 39. Rxb4 {[%clk 0:00:45]}  h5 {[%clk 0:00:08]} 40. h4 {[%clk 0:00:42]}  Kf6 {[%clk 0:00:08]} 41. Rd4 {[%clk 0:00:33]}  Rb3 {[%clk 0:00:07]} 42. Rd2 {[%clk 0:00:34]}  Kf7 {[%clk 0:00:07]} 43. Kd1 {[%clk 0:00:34]}  Rxe3 {[%clk 0:00:07]} 44. Kc2 {[%clk 0:00:33]}  Re1 {[%clk 0:00:06]} 45. b4 {[%clk 0:00:31]}  e3 {[%clk 0:00:06]} 46. Rd1 {[%clk 0:00:27]}  Re2+ {[%clk 0:00:06]} 47. Kc3 {[%clk 0:00:25]}  Rxg2 {[%clk 0:00:06]} 48. b5 {[%clk 0:00:25]}  e2 {[%clk 0:00:05]} 49. Re1 {[%clk 0:00:20]}  Ke6 {[%clk 0:00:06]} 50. Kd3 {[%clk 0:00:09]}  Kd6 {[%clk 0:00:06]} 51. Rxe2 {[%clk 0:00:09]}  Rg4 {[%clk 0:00:05]} 52. Ke3 {[%clk 0:00:05]}  Rxh4 {[%clk 0:00:05]} 53. Rb2 {[%clk 0:00:05]}  Rh3+ {[%clk 0:00:05]} 54. Kd4 {[%clk 0:00:05]}  Kc7 {[%clk 0:00:05]} 55. Ke5 {[%clk 0:00:04]}  Re3+ {[%clk 0:00:04]} 56. Kf6 {[%clk 0:00:04]}  Rg3 {[%clk 0:00:04]} 57. b6+ {[%clk 0:00:03]}  Kb7 {[%clk 0:00:04]} 58. Rb1 {[%clk 0:00:03]}  h4 {[%clk 0:00:04]} 59. Rh1 {[%clk 0:00:03]}  h3 {[%clk 0:00:04]} 60. Rb1 {[%clk 0:00:03]}  h2 {[%clk 0:00:04]} 61. Rh1 {[%clk 0:00:02]}  Rg2 {[%clk 0:00:04]} 62. Ke5 {[%clk 0:00:02]}  Kxb6 {[%clk 0:00:03]} 63. Kd4 {[%clk 0:00:02]}  Kc6 {[%clk 0:00:03]} 64. Ke3 {[%clk 0:00:03]}  Kd6 {[%clk 0:00:04]} 65. Kf3 {[%clk 0:00:03]}  Rb2 {[%clk 0:00:03]} 66. Kg3 {[%clk 0:00:03]}  Ke6 {[%clk 0:00:04]} 67. Kh3 {[%clk 0:00:03]}  Kd5 {[%clk 0:00:04]} 68. Kg3 {[%clk 0:00:03]}  Ke4 {[%clk 0:00:04]} 69. Re1+ {[%clk 0:00:03]}  Kd3 {[%clk 0:00:04]} 70. Rh1 {[%clk 0:00:03]}  Ke3 {[%clk 0:00:04]} 71. Re1+ {[%clk 0:00:03]}  Re2 {[%clk 0:00:04]} 72. Rh1 {[%clk 0:00:03]}  Ke4 {[%clk 0:00:04]} 73. Ra1 {[%clk 0:00:01]}  Re3+ {[%clk 0:00:03]} 0-1


[Site "https://www.chess.com"]

[Event "Titled Tuesday Blitz May 31 Early 2022"]
[White "Hasangatin, Ramil"]
[Black "Pakleza, Zbigniew"]
[WhiteFideId "4122160"]
[BlackFideId "1119290"]
[WhiteElo "2399"]
[BlackElo "2467"]
[Result "1-0"]
[Round "11"]
[TimeControl "180+1"]
[Date "2022.05.31"]
[WhiteClock "0:01:36"]
[BlackClock "0:00:18"]

1. e4 {[%clk 0:02:56]}  d6 {[%clk 0:02:59]} 2. d4 {[%clk 0:02:55]}  Nf6 {[%clk 0:03:00]} 3. Nc3 {[%clk 0:02:56]}  c6 {[%clk 0:03:00]} 4. a4 {[%clk 0:02:55]}  Nbd7 {[%clk 0:02:58]} 5. Nf3 {[%clk 0:02:55]}  e5 {[%clk 0:02:59]} 6. Bc4 {[%clk 0:02:55]}  Be7 {[%clk 0:02:59]} 7. O-O {[%clk 0:02:55]}  O-O {[%clk 0:03:00]} 8. Re1 {[%clk 0:02:56]}  h6 {[%clk 0:02:57]} 9. Ba2 {[%clk 0:02:56]}  Qc7 {[%clk 0:02:54]} 10. h3 {[%clk 0:02:54]}  Re8 {[%clk 0:02:54]} 11. Be3 {[%clk 0:02:54]}  Nf8 {[%clk 0:02:45]} 12. a5 {[%clk 0:02:35]}  Ng6 {[%clk 0:02:32]} 13. d5 {[%clk 0:02:35]}  c5 {[%clk 0:02:25]} 14. Bc4 {[%clk 0:02:31]}  a6 {[%clk 0:02:20]} 15. Bf1 {[%clk 0:02:30]}  Nf4 {[%clk 0:02:14]} 16. Kh2 {[%clk 0:02:29]}  g5 {[%clk 0:02:11]} 17. g3 {[%clk 0:02:28]}  Ng6 {[%clk 0:02:09]} 18. Nd2 {[%clk 0:02:27]}  Bd7 {[%clk 0:01:53]} 19. Nc4 {[%clk 0:02:27]}  Rad8 {[%clk 0:01:48]} 20. Nb6 {[%clk 0:02:27]}  Bf8 {[%clk 0:01:46]} 21. Be2 {[%clk 0:02:26]}  Ne7 {[%clk 0:01:42]} 22. Nxd7 {[%clk 0:02:21]}  Qxd7 {[%clk 0:01:33]} 23. Bg4 {[%clk 0:02:21]}  Nxg4+ {[%clk 0:01:30]} 24. hxg4 {[%clk 0:02:13]}  Nc8 {[%clk 0:01:16]} 25. Qf3 {[%clk 0:02:08]}  Bg7 {[%clk 0:01:08]} 26. Kg2 {[%clk 0:02:07]}  Qc7 {[%clk 0:01:04]} 27. Bd2 {[%clk 0:02:05]}  Ne7 {[%clk 0:00:50]} 28. Na4 {[%clk 0:02:03]}  Rb8 {[%clk 0:00:48]} 29. Nb6 {[%clk 0:02:03]}  Nc8 {[%clk 0:00:43]} 30. Nc4 {[%clk 0:02:03]}  Ne7 {[%clk 0:00:43]} 31. Rh1 {[%clk 0:02:02]}  Qd7 {[%clk 0:00:41]} 32. b3 {[%clk 0:01:57]}  Red8 {[%clk 0:00:41]} 33. Rh5 {[%clk 0:01:55]}  f6 {[%clk 0:00:39]} 34. Rah1 {[%clk 0:01:55]}  Kf7 {[%clk 0:00:39]} 35. Rxh6 {[%clk 0:01:53]}  Ng8 {[%clk 0:00:17]} 36. Rh7 {[%clk 0:01:48]}  Kg6 {[%clk 0:00:16]} 37. Ne3 {[%clk 0:01:41]}  b6 {[%clk 0:00:14]} 38. Nf5 {[%clk 0:01:40]}  Qxf5 {[%clk 0:00:12]} 39. Qxf5+ {[%clk 0:01:36]}  Kf7 {[%clk 0:00:13]} 40. Rxg7+ {[%clk 0:01:37]}  Kxg7 {[%clk 0:00:13]} 41. Rh7+ {[%clk 0:01:37]}  Kf8 {[%clk 0:00:14]} 42. Qe6 {[%clk 0:01:37]}  Rb7 {[%clk 0:00:15]} 43. Rxb7 {[%clk 0:01:36]}  Rd7 {[%clk 0:00:16]} 44. Rxd7 {[%clk 0:01:35]}  Ne7 {[%clk 0:00:17]} 45. Qxe7+ {[%clk 0:01:36]}  Kg8 {[%clk 0:00:18]} 46. Qg7# {[%clk 0:01:36]} 1-0


[Site "https://www.chess.com"]

[Event "Titled Tuesday Blitz May 31 Early 2022"]
[White "Hirneise, Jens"]
[Black "Aradhya, Garg"]
[WhiteFideId "24614734"]
[BlackFideId "25006746"]
[WhiteElo "2359"]
[BlackElo "2169"]
[Result "1/2-1/2"]
[Round "11"]
[TimeControl "180+1"]
[Date "2022.06.01"]
[WhiteClock "0:00:04"]
[BlackClock "0:00:54"]

1. e4 {[%clk 0:03:00]}  e5 {[%clk 0:02:56]} 2. Bc4 {[%clk 0:02:56]}  Nf6 {[%clk 0:02:55]} 3. Nc3 {[%clk 0:02:55]}  Nxe4 {[%clk 0:02:54]} 4. Qh5 {[%clk 0:02:40]}  Nd6 {[%clk 0:02:54]} 5. Qxe5+ {[%clk 0:02:39]}  Qe7 {[%clk 0:02:54]} 6. Qxe7+ {[%clk 0:02:36]}  Bxe7 {[%clk 0:02:55]} 7. Be2 {[%clk 0:02:31]}  c6 {[%clk 0:02:53]} 8. d4 {[%clk 0:02:27]}  O-O {[%clk 0:02:52]} 9. Bf4 {[%clk 0:02:25]}  Nf5 {[%clk 0:02:51]} 10. O-O-O {[%clk 0:02:25]}  d5 {[%clk 0:02:50]} 11. Nf3 {[%clk 0:02:25]}  Nd7 {[%clk 0:02:50]} 12. Rhe1 {[%clk 0:02:21]}  Bd6 {[%clk 0:02:47]} 13. Ne5 {[%clk 0:02:16]}  f6 {[%clk 0:02:46]} 14. Nd3 {[%clk 0:02:10]}  Nb6 {[%clk 0:02:30]} 15. Bxd6 {[%clk 0:02:02]}  Nxd6 {[%clk 0:02:30]} 16. Nc5 {[%clk 0:02:02]}  Nd7 {[%clk 0:02:28]} 17. Ne6 {[%clk 0:02:01]}  Rf7 {[%clk 0:02:28]} 18. Bf3 {[%clk 0:01:56]}  Nb6 {[%clk 0:02:23]} 19. Re2 {[%clk 0:01:47]}  Re7 {[%clk 0:02:17]} 20. Rde1 {[%clk 0:01:43]}  Rxe6 {[%clk 0:02:17]} 21. Rxe6 {[%clk 0:01:43]}  Bxe6 {[%clk 0:02:18]} 22. Rxe6 {[%clk 0:01:44]}  Rd8 {[%clk 0:02:19]} 23. Re7 {[%clk 0:01:42]}  Kf8 {[%clk 0:02:18]} 24. Re1 {[%clk 0:01:37]}  Nf5 {[%clk 0:02:16]} 25. Rd1 {[%clk 0:01:30]}  Nh4 {[%clk 0:02:16]} 26. b3 {[%clk 0:01:25]}  Re8 {[%clk 0:02:13]} 27. Kd2 {[%clk 0:01:25]}  Nxf3+ {[%clk 0:02:13]} 28. gxf3 {[%clk 0:01:26]}  Nc8 {[%clk 0:02:13]} 29. a4 {[%clk 0:01:20]}  Nd6 {[%clk 0:02:12]} 30. a5 {[%clk 0:01:13]}  Nf5 {[%clk 0:02:11]} 31. Kc1 {[%clk 0:01:03]}  b5 {[%clk 0:02:07]} 32. axb6 {[%clk 0:01:02]}  axb6 {[%clk 0:02:08]} 33. Na4 {[%clk 0:00:57]}  Rb8 {[%clk 0:02:07]} 34. c3 {[%clk 0:00:54]}  Ke7 {[%clk 0:02:07]} 35. Re1+ {[%clk 0:00:53]}  Kd6 {[%clk 0:02:07]} 36. Kd2 {[%clk 0:00:50]}  c5 {[%clk 0:02:05]} 37. dxc5+ {[%clk 0:00:48]}  bxc5 {[%clk 0:02:06]} 38. Kc2 {[%clk 0:00:48]}  d4 {[%clk 0:02:06]} 39. Nb2 {[%clk 0:00:47]}  dxc3 {[%clk 0:02:03]} 40. Nc4+ {[%clk 0:00:45]}  Kd7 {[%clk 0:02:03]} 41. Kxc3 {[%clk 0:00:43]}  Nd4 {[%clk 0:02:03]} 42. Nd2 {[%clk 0:00:42]}  Ra8 {[%clk 0:01:58]} 43. f4 {[%clk 0:00:37]}  Ra2 {[%clk 0:01:57]} 44. Rd1 {[%clk 0:00:34]}  Kc6 {[%clk 0:01:54]} 45. b4 {[%clk 0:00:29]}  Ra3+ {[%clk 0:01:46]} 46. Kb2 {[%clk 0:00:19]}  Rd3 {[%clk 0:01:24]} 47. bxc5 {[%clk 0:00:20]}  Nf3 {[%clk 0:01:25]} 48. Kc2 {[%clk 0:00:19]}  Rxd2+ {[%clk 0:01:25]} 49. Rxd2 {[%clk 0:00:19]}  Nxd2 {[%clk 0:01:26]} 50. Kxd2 {[%clk 0:00:20]}  Kxc5 {[%clk 0:01:26]} 51. Ke3 {[%clk 0:00:20]}  Kd5 {[%clk 0:01:26]} 52. Kd3 {[%clk 0:00:18]}  f5 {[%clk 0:01:26]} 53. f3 {[%clk 0:00:16]}  g6 {[%clk 0:01:26]} 54. h4 {[%clk 0:00:13]}  Kc5 {[%clk 0:01:24]} 55. Kc3 {[%clk 0:00:13]}  Kd5 {[%clk 0:01:12]} 56. Kd3 {[%clk 0:00:13]}  Ke6 {[%clk 0:01:12]} 57. Kd4 {[%clk 0:00:11]}  Kf6 {[%clk 0:01:12]} 58. Kd5 {[%clk 0:00:10]}  Kg7 {[%clk 0:01:12]} 59. Ke6 {[%clk 0:00:02]}  Kh6 {[%clk 0:00:56]} 60. Kf6 {[%clk 0:00:02]}  Kh5 {[%clk 0:00:56]} 61. Kg7 {[%clk 0:00:03]}  Kxh4 {[%clk 0:00:53]} 62. Kxh7 {[%clk 0:00:03]}  Kg3 {[%clk 0:00:53]} 63. Kxg6 {[%clk 0:00:03]}  Kxf4 {[%clk 0:00:54]} 64. Kf6 {[%clk 0:00:03]}  Kxf3 {[%clk 0:00:54]} 65. Kxf5 {[%clk 0:00:04]} 1/2-1/2


[Site "https://www.chess.com"]

[Event "Titled Tuesday Blitz May 31 Early 2022"]
[White "Jarocka, Liwia"]
[Black "Wagner, Dinara"]
[WhiteFideId "21807558"]
[BlackFideId "24157570"]
[WhiteElo "1887"]
[BlackElo "2216"]
[Result "1/2-1/2"]
[Round "11"]
[TimeControl "180+1"]
[Date "2022.06.01"]
[WhiteClock "0:00:11"]
[BlackClock "0:00:10"]

1. Nf3 {[%clk 0:03:00]}  d5 {[%clk 0:02:58]} 2. d4 {[%clk 0:02:59]}  Nf6 {[%clk 0:02:57]} 3. c4 {[%clk 0:02:58]}  c6 {[%clk 0:02:58]} 4. Nc3 {[%clk 0:02:56]}  e6 {[%clk 0:02:57]} 5. cxd5 {[%clk 0:02:49]}  exd5 {[%clk 0:02:56]} 6. Bg5 {[%clk 0:02:44]}  Be7 {[%clk 0:02:55]} 7. e3 {[%clk 0:02:44]}  Bf5 {[%clk 0:02:55]} 8. Bd3 {[%clk 0:02:44]}  Bxd3 {[%clk 0:02:54]} 9. Qxd3 {[%clk 0:02:45]}  Nbd7 {[%clk 0:02:54]} 10. O-O {[%clk 0:02:44]}  O-O {[%clk 0:02:54]} 11. a3 {[%clk 0:02:41]}  Ne4 {[%clk 0:02:53]} 12. Bxe7 {[%clk 0:02:39]}  Qxe7 {[%clk 0:02:54]} 13. Nd2 {[%clk 0:02:38]}  Rfe8 {[%clk 0:02:51]} 14. Ncxe4 {[%clk 0:02:35]}  dxe4 {[%clk 0:02:51]} 15. Qc2 {[%clk 0:02:33]}  Qh4 {[%clk 0:02:24]} 16. b4 {[%clk 0:02:29]}  Re6 {[%clk 0:02:24]} 17. Rfc1 {[%clk 0:02:24]}  Rae8 {[%clk 0:02:24]} 18. Nf1 {[%clk 0:02:23]}  Rg6 {[%clk 0:02:19]} 19. Ng3 {[%clk 0:02:17]}  h5 {[%clk 0:02:14]} 20. b5 {[%clk 0:02:10]}  cxb5 {[%clk 0:02:13]} 21. Qc7 {[%clk 0:02:08]}  Nf6 {[%clk 0:02:06]} 22. Rc5 {[%clk 0:01:46]}  Qg4 {[%clk 0:01:48]} 23. h3 {[%clk 0:01:37]}  Qe6 {[%clk 0:01:48]} 24. Re5 {[%clk 0:01:30]}  Qc8 {[%clk 0:01:21]} 25. Qxc8 {[%clk 0:01:28]}  Rxc8 {[%clk 0:01:21]} 26. Rxb5 {[%clk 0:01:25]}  b6 {[%clk 0:01:16]} 27. Nxh5 {[%clk 0:01:22]}  Nxh5 {[%clk 0:01:12]} 28. Rxh5 {[%clk 0:01:23]}  Rc2 {[%clk 0:01:12]} 29. Rf5 {[%clk 0:01:14]}  Rgc6 {[%clk 0:01:04]} 30. Kh2 {[%clk 0:01:02]}  Rb2 {[%clk 0:01:02]} 31. a4 {[%clk 0:00:59]}  a5 {[%clk 0:01:02]} 32. d5 {[%clk 0:00:44]}  Rcc2 {[%clk 0:01:02]} 33. Rd1 {[%clk 0:00:41]}  Rd2 {[%clk 0:00:53]} 34. Rc1 {[%clk 0:00:36]}  g6 {[%clk 0:00:50]} 35. Rf4 {[%clk 0:00:18]}  Rxf2 {[%clk 0:00:51]} 36. Rxf2 {[%clk 0:00:17]}  Rxf2 {[%clk 0:00:51]} 37. Rb1 {[%clk 0:00:17]}  Rf6 {[%clk 0:00:35]} 38. g4 {[%clk 0:00:16]}  Rd6 {[%clk 0:00:36]} 39. Rb5 {[%clk 0:00:15]}  g5 {[%clk 0:00:35]} 40. Kg3 {[%clk 0:00:15]}  Kg7 {[%clk 0:00:36]} 41. h4 {[%clk 0:00:16]}  gxh4+ {[%clk 0:00:36]} 42. Kxh4 {[%clk 0:00:17]}  Kf6 {[%clk 0:00:37]} 43. Kg3 {[%clk 0:00:16]}  Ke5 {[%clk 0:00:37]} 44. g5 {[%clk 0:00:16]}  Kf5 {[%clk 0:00:23]} 45. Kh4 {[%clk 0:00:15]}  f6 {[%clk 0:00:05]} 46. gxf6 {[%clk 0:00:14]}  Kxf6 {[%clk 0:00:06]} 47. Kg4 {[%clk 0:00:15]}  Ke5 {[%clk 0:00:07]} 48. Kg5 {[%clk 0:00:14]}  Rxd5 {[%clk 0:00:06]} 49. Rxb6 {[%clk 0:00:14]}  Rd3 {[%clk 0:00:06]} 50. Rb5+ {[%clk 0:00:14]}  Rd5 {[%clk 0:00:06]} 51. Rxd5+ {[%clk 0:00:09]}  Kxd5 {[%clk 0:00:06]} 52. Kf4 {[%clk 0:00:10]}  Kc4 {[%clk 0:00:07]} 53. Kxe4 {[%clk 0:00:10]}  Kb4 {[%clk 0:00:08]} 54. Kd3 {[%clk 0:00:10]}  Kxa4 {[%clk 0:00:08]} 55. Kc3 {[%clk 0:00:10]}  Kb5 {[%clk 0:00:08]} 56. e4 {[%clk 0:00:09]}  Kc5 {[%clk 0:00:09]} 57. Kb3 {[%clk 0:00:09]}  Kd4 {[%clk 0:00:09]} 58. Ka4 {[%clk 0:00:10]}  Kxe4 {[%clk 0:00:10]} 59. Kxa5 {[%clk 0:00:11]} 1/2-1/2


[Site "https://www.chess.com"]